Cogmind - Beta 13 @@@ ROGUE MODE // 2024.04.04 @ 14:19:19 Player: 81fm Result: Self-destructed Performance ------------- Evolutions (1) 500 Regions Visited (3) 600 Robots Destroyed (9) 45 Value Destroyed (130) 130 Prototype IDs (0) 0 Alien Tech Used (0) 0 Bonus (0) 0 TOTAL SCORE: 1275 Bonus ------- None Cogmind --------- Core Integrity 392/400 Matter 693/700 Energy 13/100 System Corruption 0% Temperature Cool (0) Movement Rolling (105) Ox1 Location -9/Materials Parts ------- > --- POWER (1) -------- (None) > --- PROPULSION (2) --- Wheel Compact Wheel > --- UTILITY (4) ------ Large Storage Unit High-capacity Matter Pod High-capacity Matter Pod Field Recycling Unit > --- WEAPON (2) ------- (None) > --- INVENTORY (15) --- Improved Heat Sink Signal Interpreter Assault Rifle Assault Rifle Peak State ------------ > --- POWER ------------ (None) > --- PROPULSION ------- Wheel Compact Wheel > --- UTILITY ---------- Large Storage Unit High-capacity Matter Pod High-capacity Matter Pod Field Recycling Unit > --- WEAPON ----------- Grenade Launcher Grenade Launcher > --- INVENTORY -------- Improved Heat Sink Signal Interpreter Assault Rifle Assault Rifle [Rating: 9] Favorites ----------- Power Ion Engine Engine Ion Engine Propulsion Compact Wheel Wheel Compact Wheel Utility High-capacity Matter Pod Device Field Recycling Unit Storage High-capacity Matter Pod Processor Signal Interpreter Weapon Grenade Launcher Ballistic Gun Assault Rifle Launcher Grenade Launcher Build | -11 -10 -10 -9 ------- Run | Yrd Mat Min Mat Slots Evolved 2 | . . . 2 Power . | . . . . Propulsion . | . . . . Utility 2 | . . . 2 Weapon . | . . . . Parts Attached 13 | 5 4 2 2 Power 1 | 1 . . . Engine 1 | 1 . . . Core . | . . . . Reactor . | . . . . Propulsion 3 | 2 . 1 . Treads . | . . . . Leg . | . . . . Wheel 3 | 2 . 1 . Hover . | . . . . Flight . | . . . . Utility 5 | . 2 1 2 Device 1 | . . . 1 Storage 3 | . 1 1 1 Processor 1 | . 1 . . Hackware . | . . . . Protection . | . . . . Artifact . | . . . . Weapon 4 | 2 2 . . Energy Gun . | . . . . Energy Cannon . | . . . . Ballistic Gun 2 | 2 . . . Ballistic Cannon . | . . . . Launcher 2 | . 2 . . Special Weapon . | . . . . Impact Weapon . | . . . . Slashing Weapon . | . . . . Piercing Weapon . | . . . . Special Melee Weapon . | . . . . Unidentified Prototypes . | . . . . Parts Lost 4 | . 1 . 3 Power 1 | . . . 1 Propulsion 1 | . 1 . . Utility . | . . . . Weapon 2 | . . . 2 Highest Loss Streak 1 | . 1 . 1 To Critical Strikes . | . . . . Average Slot Usage (%) 78 | . 71 82 83 Engine 7 | . 14 14 . Wheel 21 | . 23 16 22 Device 4 | . . . 9 Storage 19 | . 4 22 32 Ballistic Gun 7 | . 19 . . Launcher 16 | . 8 28 19 Naked Turns . | . . . . Heaviest Build 42 | 9 15 19 42 Greatest Support 26 | 26 26 16 26 Greatest Overweight (x) 1 | 1 . 1 1 Average Overweight (x) . | . . . . Largest Inventory Capacity 15 | 5 5 5 15 Average Capacity 8 | 5 5 5 14 Most Carried 5 | 5 5 5 5 Average Carried 2 | . 1 4 4 Final Capacity 15 | 5 5 5 15 Final Carried 4 | . 4 4 4 Class Distribution -------------------- 100% | Mutant Dominant Class ---------------- Mutant | -10/Materials Mutant | -10/Mines Mutant | -9/Materials Resources | -11 -10 -10 -9 ----------- Run | Yrd Mat Min Mat Matter Collected 775 | 204 97 474 . Remotely . | . . . . Salvage Created 214 | . 131 57 26 Parts 21 | . 11 4 6 Haulers Intercepted . | . . . . Recyclers Shooed . | . . . . Parts Field Recycled 12 | . . . 12 Retrieved Matter 140 | . . . 140 Parts Self-Destructed . | . . . . Prevented . | . . . . Kills | -11 -10 -10 -9 ------- Run | Yrd Mat Min Mat Combat Hostiles Destroyed 4 | . 4 . . Guns 4 | . 4 . . Classes Destroyed 6 | . 2 2 2 Worker 2 | . . 1 1 Builder 1 | . . . 1 Recycler 1 | . . 1 . Operator 1 | . . . 1 Swarmer 2 | . 2 . . Grunt 2 | . 2 . . Best Kill Streak 3 | . 2 2 3 Combat Bots Only 2 | . 2 . . Max Kills in Single Turn 2 | . 2 2 1 Gunslinging . | . . . . Exploded . | . . . . Melee . | . . . . Uniques/NPCs Destroyed . | . . . . Combat | -11 -10 -10 -9 -------- Run | Yrd Mat Min Mat Hostile Shots Fired 30 | . 22 . 8 Missed 7 | . 5 . 2 Damage Taken 432 | . 248 14 170 Core 72 | . 57 7 8 Absorbed by Shields . | . . . . Core Remaining (%) 87 | 100 . 74 . Volleys Fired 20 | . 12 1 7 Largest 2 | . 2 1 2 Hottest 60 | . 60 30 60 Shots Fired 33 | . 24 1 8 Gun 22 | . 22 . . Cannon . | . . . . Launcher 11 | . 2 1 8 Special . | . . . . Kinetic 22 | . 22 . . Thermal . | . . . . Explosive 11 | . 2 1 8 Electromagnetic . | . . . . Robot Hit Streak 3 | . 3 . 1 Robot Miss Streak 4 | . 4 1 4 Penetration Max . | . . . . Secondary Targets 1 | . 1 . . Max Gunslinging Chain 1 | . 1 . . Shots Hit Robots 13 | . 11 . 2 Core Hits 13 | . 7 2 4 Critical Kills 1 | . 1 . . Critical Parts Destroyed . | . . . . Critical Strikes 1 | . 1 . . Destroy 1 | . 1 . . Melee Attacks . | . . . . Impact . | . . . . Slashing . | . . . . Piercing . | . . . . Sneak Attacks . | . . . . Combat Hostiles . | . . . . Follow-up Attacks . | . . . . Damage Inflicted 476 | . 155 57 264 Guns 155 | . 155 . . Cannons . | . . . . Explosions 321 | . . 57 264 Melee . | . . . . Ramming . | . . . . Kinetic 155 | . 155 . . Thermal . | . . . . Explosive 321 | . . 57 264 Electromagnetic . | . . . . Impact . | . . . . Slashing . | . . . . Piercing . | . . . . Highest Corruption . | . . . . Average Corruption . | . . . . Corruption Purged . | . . . . Corruption Blocked . | . . . . Overload Shots . | . . . . Overflow Damage . | . . . . Projectiles . | . . . . Explosions . | . . . . Melee . | . . . . Knockbacks . | . . . . Impact . | . . . . Kinetic . | . . . . Secondary . | . . . . Self-Inflicted Damage 98 | . . 15 83 Shots 4 | . . 1 3 Rammed . | . . . . Targets Rammed . | . . . . Kicked . | . . . . Crushed . | . . . . Highest Temperature 12 | . 12 . 2 Average Temperature 5 | . 5 . 2 Received Heat Transfer 156 | . 123 . 33 Siege Activations . | . . . . Robots Corrupted . | . . . . Combat Hostiles . | . . . . Parts Fried . | . . . . Impact Corruptions . | . . . . Robots Melted . | . . . . Combat Hostiles . | . . . . Parts Melted . | . . . . Heat Transferred . | . . . . Parts Sabotaged . | . . . . Parts Stolen . | . . . . Parts Stripped . | . . . . Power Chain Reactions . | . . . . Alert | -11 -10 -10 -9 ------- Run | Yrd Mat Min Mat Peak Influence 100 | . 100 49 81 Initial 36 | . . 36 18 Average 47 | . 67 41 45 Maximum Alert Level . | . . . . Low Security (%) 100 | 100 100 100 100 Level 1 . | . . . . Level 2 . | . . . . Level 3 . | . . . . Level 4 . | . . . . Level 5 . | . . . . High Security . | . . . . Max Security . | . . . . Squads Dispatched . | . . . . Investigation . | . . . . Extermination . | . . . . Reinforcement . | . . . . Assault . | . . . . Garrison . | . . . . Intercept . | . . . . Searches Triggered . | . . . . Construction Impeded . | . . . . Haulers Reinforced . | . . . . Active Scanning Responses . | . . . . Cargo Convoy Interrupts . | . . . . Stealth | -11 -10 -10 -9 --------- Run | Yrd Mat Min Mat Distress Signals 1 | . 1 . . Communications Jammed . | . . . . Distress Signals . | . . . . Times Spotted 10 | . 4 . 6 Peak Tracking Total 3 | . 3 . 3 Tactical Retreats . | . . . . Traps | -11 -10 -10 -9 ------- Run | Yrd Mat Min Mat Traps Triggered 1 | . 1 . . Indirectly . | . . . . Trap Hack Attempts . | . . . . Triggered . | . . . . Disarmed . | . . . . Reprogrammed . | . . . . Reused . | . . . . Traps Extracted . | . . . . Installed . | . . . . Triggered . | . . . . Machines | -11 -10 -10 -9 ---------- Run | Yrd Mat Min Mat Machines Disabled . | . . . . Max in Single Turn . | . . . . Machines Repaired . | . . . . Machines Dismantled . | . . . . Machines Sabotaged . | . . . . Overloaded Fab Kills . | . . . . Hacking | -11 -10 -10 -9 --------- Run | Yrd Mat Min Mat Machines Accessed 1 | . . . 1 Terminals 1 | . . . 1 Fabricators . | . . . . Repair Stations . | . . . . Recycling Units . | . . . . Scanalyzers . | . . . . Garrison Access . | . . . . Total Hacks 2 | . . . 2 Successful . | . . . . Failed 2 | . . . 2 Catastrophic . | . . . . Database Lockouts . | . . . . Manual . | . . . . Terminals 2 | . . . 2 Fabricators . | . . . . Repair Stations . | . . . . Recycling Units . | . . . . Scanalyzers . | . . . . Garrison Access . | . . . . Terminal Hacks . | . . . . Fabricator Hacks . | . . . . Repair Station Hacks . | . . . . Recycling Unit Hacks . | . . . . Scanalyzer . | . . . . Garrison Access Hacks . | . . . . Unauthorized Hacks . | . . . . Terminals . | . . . . Fabricators . | . . . . Repair Stations . | . . . . Recycling Units . | . . . . Scanalyzers . | . . . . Garrison Access . | . . . . Data Cores Recovered 1 | . . . 1 Used 1 | . . . 1 Hacking Detections 1 | . . . 1 Full Trace Events . | . . . . Feedback Events . | . . . . Feedback Blocked . | . . . . Robot Schematics Acquired . | . . . . Robots Built . | . . . . Authchips . | . . . . Time . | . . . . Total Robot Build Rating . | . . . . Part Schematics Acquired . | . . . . Parts Built . | . . . . Authchips . | . . . . Time . | . . . . Total Part Build Rating . | . . . . Parts Repaired . | . . . . Time . | . . . . Parts Recycled . | . . . . Recycled Matter . | . . . . Retrieved Matter . | . . . . Retrieved Components . | . . . . Parts Scanalyzed . | . . . . Part Schematics Acquired . | . . . . Parts Damaged . | . . . . Bothacking | -11 -10 -10 -9 ------------ Run | Yrd Mat Min Mat Used RIF Installer . | . . . . Robots Hacked . | . . . . Non-combat . | . . . . Combat . | . . . . Robot Hacks Applied . | . . . . Relay Couplers Released . | . . . . Fabnet Peak Effective % . | . . . . Robots Rewired . | . . . . Allies Hacked . | . . . . Hacks Repelled . | . . . . Allies | -11 -10 -10 -9 -------- Run | Yrd Mat Min Mat Total Allies . | . . . . Largest Group . | . . . . Highest-Rated Group . | . . . . Highest-Rated Ally . | . . . . Total Orders . | . . . . Ally Attacks . | . . . . Total Damage . | . . . . Kills . | . . . . Allies Corrupted . | . . . . Allies Melted . | . . . . Intel | -11 -10 -10 -9 ------- Run | Yrd Mat Min Mat Robot Analysis Total . | . . . . Derelict Logs Recovered . | . . . . Drone Launches . | . . . . Drone Recoveries . | . . . . Exploration | -11 -10 -10 -9 ------------- Run | Yrd Mat Min Mat Turns Passed 433 | 59 159 41 174 Spaces Moved 356 | 65 118 33 140 Core 25 | 25 . . . Treads . | . . . . Legs . | . . . . Wheels 331 | 40 118 33 140 Hover . | . . . . Flight . | . . . . Fastest Speed 50 | 50 90 100 90 Average Speed 96 | 75 93 109 104 Slowest Speed 115 | 100 100 115 105 Overloaded Moves . | . . . . Propulsion Burnouts . | . . . . Robots Hopped . | . . . . Cave-ins Triggered . | . . . . Exploration Rate (%) 12 | 3 25 9 11 Regions Visited 3 Branch Regions 1 Pre-discovered Areas . | . . . . Known Exits Taken . | . . . . Unknown Exits Taken 3 | 1 1 1 . Scrap Searched 1 | . . 1 . Spaces Dug . | . . . . Terrain Destroyed 60 | . 5 3 52 Melee . | . . . . Projectile . | . . . . AOE 60 | . 5 3 52 Terrain Rammed . | . . . . Walls Destroyed . | . . . . Machines Disabled . | . . . . Actions | -11 -10 -10 -9 --------- Run | Yrd Mat Min Mat Total 412 | 74 142 37 159 Wait 8 | . . . 8 Move 353 | 64 117 32 140 Hop . | . . . . Pick Up 16 | 5 7 2 2 Fast Attach . | . . . . Attach 11 | 5 2 2 2 Detach . | . . . . Swap 2 | . 2 . . Drop 2 | . 2 . . Fire 20 | . 12 1 7 Melee . | . . . . Ram . | . . . . Kick . | . . . . Crush . | . . . . Escape Stasis . | . . . . Rewire . | . . . . Trap . | . . . . Miscellaneous . | . . . . Route ------- -11/Scrapyard -10/Materials -10/Mines -9/Materials History --------- Turn | Location | Event 5 | -11/Scrapyard | Discovered new exit (range 16) 60 | -11/Scrapyard | Entered Materials 154 | -10/Materials | Discovered new exit (range 11) 219 | -10/Materials | Entered Mines 229 | -10/Mines | Discovered new exit (range 8) 260 | -10/Mines | Entered Materials 260 | -9/Materials | Evolved 2 slots: Utility x2 303 | -9/Materials | Build established: Mutant 434 | -9/Materials | Self-destructed Last Messages --------------- 00315_ U-05 Engineer lays Concrete. 00316_ Field Recycling Unit collects Imp. Hover Unit, recycling 4 matter... 00316_ U-05 Engineer lays Concrete. 00317_ Field Recycling Unit collects Imp. Hover Unit, recycling 4 matter... 00317_ U-05 Engineer lays Concrete. 00335_ U-05 Engineer builds a Wall. 00339_ U-05 Engineer lays Concrete. 00345_ U-05 Engineer builds a Wall. 00350_ U-05 Engineer lays Concrete. 00351_ U-05 Engineer builds a Wall. 00354_ Connecting with Terminal... 00356_ U-05 Engineer builds a Wall. 00378_ K-01 Serf collects debris. 00390_ Grenade Launcher destroyed. 00400_ K-01 Serf destroyed. 00403_ The unstable cave ceiling collapses. 00408_ U-05 Engineer lays Concrete. 00409_ U-05 Engineer destroyed. 00416_ The unstable cave ceiling collapses. 00432_ Grenade Launcher destroyed. Map ----- +----------------------------------------------------+ | ???????# ""?????????????????????????? | | ???????# ???????????????????????????? | | ???????# ?????????????????????????????? | | ???????# ???????????????????????????????? | | ??????##+####+############# ??????????????? | | ??????# ?????????????? | | ??????# ?????????????? | | ??????# ?????????????? | | ??????###### ##########?????????????????? | | ????????#### #??????????????????????????? | | ??????###! ##?????????????????????????? | | ??????##! #?????????????????????????? | | ??????# ! #?????????????????????????? | | ?????## ! = #?????????????????????????? | | ?????# ! #?????????????????????????? | | ??????# ! ##????????????????????????? | | ??????## # #????????????????????????? | | ???????## ! #????????????????????????? | | ????????### %| #?????????????????????????? | | ??????????? ##?????????????????????????? | | ???????????# #?????????????????????????? | | ???????????# #??????????????????????????? | | ???????????# #??????????????????????????? | | ???????????# #??????????????????????????? | | ??????????# ######?????????????????????? | | ??????????# gg @ #?????????????????????? | | ??????????# ##########????????????? | | ????### # #????????????? | | ????# # """#????????????? | | ????#!] # """#????????????? | | ????#!] r# """#????????????? | | ????#][ # + #????????????? | | ????# + # """#????????????? | | ????# # "" # = """#????????????? | | ????######## "T # ! """#????????????? | | ????# # "" # #????????????? | | ????# T # ##########????????????? | | ????# ] + #?????????????????????? | | ????# # ######?????????????????????? | | ????# # # #????????????????????????? | | ????# #### #????????????????????????? | | ????########## ###????????????????????????? | | ?????????????###??????????????????????????? | | ??????????????????????????????????????????? | | ??????????????????????????????????????????? | | ??????????????????????????????????????????? | | ??????????????????????????????????????????? | | ??????????????????????????????????????????? | | | | | +----------------------------------------------------+ Best States ------------- Heat Dissipation 28 Energy Generation 10 Energy Capacity 250 Matter Stores 700 Matter Capacity 700 Sight Range 16 Terrain Scan Density 10 Evasion (%) 50 Item Schematics ----------------- None Robot Schematics ------------------ None Fabricated ------------ Nothing Alien Tech Used ----------------- None Achievements -------------- None Challenges ------------ None Game ------ Seed SensorCoolantReactor Manual? 0 Play Time 00:09:40 Cumulative 9.5 hours Start 2024.04.04 @ 14:10:58 End 2024.04.04 @ 14:19:19 Sessions 1 Manual Loads 0 Difficulty Rogue Special Mode None Game No. 20 Rogue 15 Adventurer 0 Explorer 5 Win Type - Total 0 Types 0/0/0/0/0/0/0/0/0 Lore% 8 Gallery% 22 Achievement% 19 Wizard Run 0 Options --------- Layout 0 ASCII 0 Keyboard 0 Movement Mouse Keybinds 0 Fullscreen 1 Font 12/Smallcaps Map View 83x54 Zoom Use 0% Tactical HUD 1 Map Filters NONE Filters NONE Steam 1 RUN: 9b62b962-ba11-4157-bed5-410ccaaf3aff